lending/lending_fUSD_20250210
["ID","MTS","AMOUNT","RATE_DAILY","PERIOD"]
[352663004,1739221836614,-500.0,0.00010958,2]
[352663005,1739221836623,-731.45,0.00010958,2]
[352663006,1739221836632,-500.0,0.00010958,2]
[352663007,1739221836641,-500.0,0.00010958,2]
[352663008,1739221836650,-500.0,0.00010958,2]
[352663009,1739221836659,-500.0,0.00010958,2]
[352663010,1739221836670,-500.0,0.00010958,2]
[352663011,1739221836679,-500.0,0.00010958,2]
[352663012,1739221836688,-500.0,0.00010958,2]
[352663013,1739221836697,-427.71197663,0.00010958,2]
[352663014,1739221836706,-500.0,0.00010958,2]
[352663015,1739221836715,-500.0,0.00010958,2]
[352663016,1739221836724,-500.0,0.00010958,2]
[352663017,1739221836733,-500.0,0.00010958,2]
[352663018,1739221836743,-500.0,0.00010958,2]
[352663019,1739221836752,-500.0,0.00010958,2]
[352663020,1739221836762,-500.0,0.00010958,2]
[352663021,1739221836772,-500.0,0.00010958,2]
[352663022,1739221836782,-500.0,0.00010958,2]
[352663023,1739221836791,-502.27453039,0.00010958,2]
[352663024,1739221836801,-500.0,0.00010958,2]
[352663025,1739221836810,-1048.46,0.00010958,2]
[352663026,1739221836820,-452.27074414,0.00010958,2]
[352663027,1739221836829,-617.57,0.00010958,2]
[352663028,1739221836839,-500.0,0.00010958,2]
[352663029,1739221836849,-500.0,0.00010958,2]
[352663030,1739221836858,-500.0,0.00010958,2]
[352663031,1739221836867,-500.0,0.00010958,2]
[352663032,1739221836877,-500.0,0.00010958,2]
[352663033,1739221836886,-500.0,0.00010958,2]
[352663034,1739221836895,-500.84114335,0.00010958,2]
[352663035,1739221836904,-581.79,0.00010958,2]
[352663036,1739221836914,-500.0,0.00010958,2]
[352663037,1739221836924,-500.0,0.00010958,2]
[352663038,1739221836933,-500.0,0.00010958,2]
[352663039,1739221836943,-672.8,0.00010958,2]
[352663040,1739221836953,-500.0,0.00010958,2]
[352663041,1739221836962,-500.0,0.00010958,2]
[352663042,1739221836971,-508.08,0.00010958,2]
[352663043,1739221836981,-500.0,0.00010958,2]
[352663044,1739221836990,-500.0,0.00010958,2]
[352663045,1739221836999,-500.0,0.00010958,2]
[352663046,1739221837008,-500.0,0.00010958,2]
[352663047,1739221837018,-500.0,0.00010958,2]
[352663048,1739221837027,-500.0,0.00010958,2]
[352663049,1739221837041,-708.634772,0.00010958,2]
[352663050,1739221837051,-500.0,0.00010958,2]
[352663051,1739221837060,-500.0,0.00010958,2]
[352663052,1739221837069,-500.0,0.00010958,2]
[352663053,1739221837078,-500.0,0.00010958,2]
[352663054,1739221837087,-571.99,0.00010958,2]
[352663055,1739221837097,-500.0,0.00010958,2]
[352663056,1739221837107,-500.0,0.00010958,2]
[352663057,1739221837118,-701.87,0.00010958,2]
[352663058,1739221837128,-639.44,0.00010958,2]
[352663059,1739221837138,-500.0,0.00010958,2]
[352663060,1739221837147,-500.0,0.00010958,2]
[352663061,1739221837156,-500.0,0.00010958,2]
[352663062,1739221837165,-632.06,0.00010958,2]
[352663063,1739221837175,-500.0,0.00010958,2]
[352663064,1739221837184,-500.0,0.00010958,2]
[352663065,1739221837193,-500.0,0.00010958,2]
[352663066,1739221837203,-605.84,0.00010958,2]
[352663067,1739221837213,-500.0,0.00010958,2]
[352663068,1739221837222,-500.0,0.00010958,2]
[352663069,1739221837232,-500.0,0.00010958,2]
[352663070,1739221837241,-500.0,0.00010958,2]
[352663071,1739221837250,-517.18,0.00010958,2]
[352663072,1739221837260,-500.0,0.00010958,2]
[352663073,1739221837269,-527.71,0.00010958,2]
[352663074,1739221837278,-500.0,0.00010958,2]
[352663075,1739221837288,-500.0,0.00010958,2]
[352663076,1739221837297,-505.09615374,0.00010958,2]
[352663077,1739221837306,-500.0,0.00010958,2]
[352663078,1739221837315,-500.0,0.00010958,2]
[352663079,1739221837324,-500.0,0.00010958,2]
[352663080,1739221837334,-500.0,0.00010958,2]
[352663081,1739221837343,-500.0,0.00010958,2]
[352663082,1739221837352,-503.42391031,0.00010958,2]
[352663083,1739221837362,-500.0,0.00010958,2]
[352663085,1739221837371,-894.99,0.00010958,2]
[352663086,1739221837380,-500.0,0.00010958,2]
[352663087,1739221837389,-510.03157747,0.00010958,2]
[352663088,1739221837398,-500.0,0.00010958,2]
[352663089,1739221837407,-199.47592605,0.00010958,2]
[352663090,1739221837416,-500.0,0.00010958,2]
[352663091,1739221837426,-557.1,0.00010958,2]
[352663092,1739221837434,-699.63,0.00010958,2]
[352663093,1739221837444,-500.0,0.00010958,2]
[352663094,1739221837453,-500.0,0.00010958,2]
[352663095,1739221837462,-500.0,0.00010958,2]
[352663096,1739221837471,-500.0,0.00010958,2]
[352663098,1739221837481,-500.0,0.00010958,2]
[352663100,1739221837490,-500.0,0.00010958,2]
[352663101,1739221837499,-501.96785895,0.00010958,2]
[352663102,1739221837508,-510.01,0.00010958,2]
[352663103,1739221837518,-500.0,0.00010958,2]
[352663104,1739221837526,-967.51,0.00010958,2]
[352663105,1739221837536,-500.0,0.00010958,2]
[352663106,1739221837545,-500.0,0.00010958,2]
[352663107,1739221837553,-500.0,0.00010958,2]
[352663108,1739221837562,-500.0,0.00010958,2]
[352663109,1739221837577,-829.45,0.00010958,2]
[352663110,1739221837589,-500.0,0.00010958,2]
[352663111,1739221837598,-500.0,0.00010958,2]
[352663112,1739221837607,-719.38,0.00010958,2]
[352663113,1739221837617,-943.57,0.00010958,2]
[352663114,1739221837629,-616.97,0.00010958,2]
[352663115,1739221837639,-576.22,0.00010958,2]
[352663116,1739221837648,-684.24,0.00010958,2]
[352663117,1739221837657,-500.0,0.00010958,2]
[352663118,1739221837667,-500.0,0.00010958,2]
[352663119,1739221837676,-500.0,0.00010958,2]
[352663120,1739221837685,-500.0,0.00010958,2]
[352663121,1739221837694,-724.91,0.00010958,2]
[352663122,1739221837703,-500.0,0.00010958,2]
[352663123,1739221837713,-500.0,0.00010958,2]
[352663124,1739221837722,-500.0,0.00010958,2]
[352663125,1739221837732,-500.0,0.00010958,2]
[352663126,1739221837741,-587.44,0.00010958,2]
[352663127,1739221837751,-500.0,0.00010958,2]
[352663140,1739221837986,-500.0,0.00010958,2]
[352663142,1739221837996,-415.4804824,0.00010958,2]
[352663144,1739221838005,-500.0,0.00010958,2]
[352663146,1739221838015,-927.07,0.00010958,2]
[352663148,1739221838024,-804.89,0.00010958,2]
[352663150,1739221838036,-500.0,0.00010958,2]
[352663152,1739221838046,-965.4,0.00010958,2]
[352663154,1739221838056,-500.0,0.00010958,2]
[352663156,1739221838065,-500.0,0.00010958,2]
[352663158,1739221838075,-500.0,0.00010958,2]
[352663160,1739221838084,-500.0,0.00010958,2]
[352663162,1739221838093,-500.0,0.00010958,2]
[352663164,1739221838102,-696.81,0.00010958,2]
[352663166,1739221838113,-500.0,0.00010958,2]
[352663168,1739221838122,-500.0,0.00010958,2]
[352663170,1739221838131,-500.0,0.00010958,2]
[352663172,1739221838140,-500.0,0.00010958,2]
[352663174,1739221838149,-500.0,0.00010958,2]
[352663176,1739221838159,-500.0,0.00010958,2]
[352663178,1739221838167,-661.41,0.00010958,2]
[352663180,1739221838177,-500.0,0.00010958,2]
[352663182,1739221838186,-500.0,0.00010958,2]
[352663184,1739221838195,-500.0,0.00010958,2]
[352663186,1739221838204,-500.0,0.00010958,2]
[352663188,1739221838214,-500.0,0.00010958,2]
[352663190,1739221838223,-446.36771067,0.00010958,2]
[352663192,1739221838232,-500.0,0.00010958,2]
[352663194,1739221838241,-500.0,0.00010958,2]
[352663196,1739221838250,-500.0,0.00010958,2]
[352663198,1739221838259,-531.97,0.00010958,2]
[352663200,1739221838268,-561.36,0.00010958,2]
[352663201,1739221838277,-500.0,0.00010958,2]
[352663203,1739221838287,-500.0,0.00010958,2]
[352663205,1739221838298,-500.0,0.00010958,2]
[352663207,1739221838309,-500.0,0.00010958,2]
[352663209,1739221838319,-500.0,0.00010958,2]
[352663211,1739221838328,-866.63,0.00010958,2]
[352663213,1739221838339,-500.0,0.00010958,2]
[352663216,1739221838348,-500.0,0.00010958,2]
[352663217,1739221838357,-500.0,0.00010958,2]
[352663219,1739221838366,-500.0,0.00010958,2]
[352663222,1739221838375,-500.0,0.00010958,2]
[352663223,1739221838385,-490.93193303,0.00010958,2]
[352663226,1739221838394,-500.0,0.00010958,2]
[352663227,1739221838403,-500.0,0.00010958,2]
[352663230,1739221838412,-500.0,0.00010958,2]
[352663231,1739221838421,-500.0,0.00010958,2]
[352663233,1739221838430,-871.59,0.00010958,2]
[352663235,1739221838439,-500.0,0.00010958,2]
[352663237,1739221838448,-500.0,0.00010958,2]
[352663239,1739221838458,-500.0,0.00010958,2]
[352663241,1739221838467,-500.0,0.00010958,2]
[352663243,1739221838478,-500.0,0.00010958,2]
[352663245,1739221838487,-500.0,0.00010958,2]
[352663247,1739221838496,-500.0,0.00010958,2]
[352663249,1739221838506,-732.03,0.00010958,2]
[352663252,1739221838515,-500.0,0.00010958,2]
[352663253,1739221838525,-655.38,0.00010958,2]
[352663255,1739221838534,-500.0,0.00010958,2]
[352663257,1739221838543,-500.0,0.00010958,2]
[352663259,1739221838553,-500.0,0.00010958,2]
[352663260,1739221838562,-500.0,0.00010958,2]
[352663261,1739221838570,-500.0,0.00010958,2]
[352663262,1739221838579,-551.72,0.00010958,2]
[352663263,1739221838588,-826.15,0.00010958,2]
[352663264,1739221838598,-500.0,0.00010958,2]
[352663265,1739221838607,-500.0,0.00010958,2]
[352663266,1739221838616,-500.0,0.00010958,2]
[352663267,1739221838625,-500.0,0.00010958,2]
[352663268,1739221838634,-500.0,0.00010958,2]
[352663269,1739221838643,-500.0,0.00010958,2]
[352663270,1739221838652,-500.0,0.00010958,2]
[352663272,1739221838661,-500.0,0.00010958,2]
[352663274,1739221838671,-500.0,0.00010958,2]
[352663276,1739221838680,-500.0,0.00010958,2]
[352663278,1739221838689,-500.0,0.00010958,2]
[352663280,1739221838699,-500.0,0.00010958,2]
[352663282,1739221838708,-851.56,0.00010958,2]
[352663284,1739221838717,-500.0,0.00010958,2]
[352663286,1739221838727,-500.0,0.00010958,2]
[352663288,1739221838736,-502.43,0.00010958,2]
[352663290,1739221838745,-500.59330565,0.00010958,2]
[352663292,1739221838754,-500.0,0.00010958,2]
[352663294,1739221838763,-501.22387425,0.00010958,2]
[352663296,1739221838773,-880.55,0.00010958,2]
[352663298,1739221838782,-500.0,0.00010958,2]
[352663300,1739221838792,-500.0,0.00010958,2]
[352663302,1739221838801,-500.0,0.00010958,2]
[352663304,1739221838811,-500.0,0.00010958,2]
[352663306,1739221838820,-608.58185007,0.00010958,2]
[352663308,1739221838829,-1054.8,0.00010958,2]
[352663310,1739221838839,-500.0,0.00010958,2]
[352663312,1739221838848,-500.0,0.00010958,2]
[352663314,1739221838857,-500.0,0.00010958,2]
[352663316,1739221838866,-500.0,0.00010958,2]
[352663318,1739221838876,-500.0,0.00010958,2]
[352663320,1739221838885,-500.0,0.00010958,2]
[352663322,1739221838894,-500.0,0.00010958,2]
[352663324,1739221838904,-500.0,0.00010958,2]
[352663326,1739221838913,-500.0,0.00010958,2]
[352663328,1739221838922,-907.73,0.00010958,2]
[352663330,1739221838931,-500.0,0.00010958,2]
[352663332,1739221838944,-496.10545991,0.00010958,2]
[352663334,1739221838953,-623.95,0.00010958,2]
[352663336,1739221838962,-500.0,0.00010958,2]
[352663338,1739221838972,-500.0,0.00010958,2]
[352663340,1739221838981,-500.0,0.00010958,2]
[352663342,1739221838992,-505.59175136,0.00010958,2]
[352663344,1739221839002,-503.50560142,0.00010958,2]
[352663346,1739221839011,-500.0,0.00010958,2]
[352663348,1739221839020,-779.78,0.00010958,2]
[352663350,1739221839030,-500.0,0.00010958,2]
[352663352,1739221839042,-500.0,0.00010958,2]
[352663354,1739221839052,-500.0,0.00010958,2]
[352663356,1739221839061,-500.0,0.00010958,2]
[352663358,1739221839071,-563.51,0.00010958,2]
[352663360,1739221839082,-500.0,0.00010958,2]
[352663362,1739221839091,-500.0,0.00010958,2]
[352663364,1739221839100,-500.0,0.00010958,2]
[352663366,1739221839109,-500.0,0.00010958,2]
[352663368,1739221839119,-500.0,0.00010958,2]
[352663370,1739221839129,-500.0,0.00010958,2]
[352663372,1739221839138,-500.0,0.00010958,2]
[352663374,1739221839147,-500.0,0.00010958,2]
[352663376,1739221839157,-662.32,0.00010958,2]
[352663378,1739221839166,-504.63218972,0.00010958,2]
[352663380,1739221839175,-582.22,0.00010958,2]
[352663382,1739221839184,-971.95,0.00010958,2]
[352663384,1739221839193,-557.85,0.00010958,2]
[352663386,1739221839203,-500.0,0.00010958,2]
[352663388,1739221839212,-500.0,0.00010958,2]
[352663390,1739221839221,-500.0,0.00010958,2]
[352663392,1739221839231,-500.0,0.00010958,2]
[352663394,1739221839239,-500.0,0.00010958,2]
[352663396,1739221839249,-500.0,0.00010958,2]
[352663398,1739221839258,-500.0,0.00010958,2]
[352663400,1739221839268,-500.0,0.00010958,2]
[352663402,1739221839277,-500.0,0.00010958,2]
[352663404,1739221839286,-500.0,0.00010958,2]
[352663406,1739221839296,-500.0,0.00010958,2]
[352663408,1739221839306,-807.26,0.00010958,2]
[352663410,1739221839315,-500.0,0.00010958,2]
[352663412,1739221839325,-500.0,0.00010958,2]
[352663414,1739221839335,-500.0,0.00010958,2]
[352663416,1739221839345,-500.0,0.00010958,2]
[352663418,1739221839355,-500.0,0.00010958,2]
[352663420,1739221839364,-680.56,0.00010958,2]
[352663422,1739221839373,-500.0,0.00010958,2]
[352663424,1739221839382,-500.0,0.00010958,2]
[352663426,1739221839391,-500.0,0.00010958,2]
[352663428,1739221839402,-166.24669048,0.00010958,2]
[352663430,1739221839412,-500.0,0.00010958,2]
[352663432,1739221839421,-500.0,0.00010958,2]
[352663434,1739221839430,-500.0,0.00010958,2]
[352663436,1739221839440,-460.08618774,0.00010958,2]
[352663438,1739221839449,-89.26056287,0.00010958,2]
[352663505,1739221840044,-544.07943713,0.00010958,2]
[352663507,1739221840053,-500.0,0.00010958,2]
[352663509,1739221840063,-500.0,0.00010958,2]
[352663511,1739221840072,-500.0,0.00010958,2]
[352663513,1739221840083,-500.0,0.00010958,2]
[352663515,1739221840092,-500.0,0.00010958,2]
[352663516,1739221840102,-500.0,0.00010958,2]
[352663518,1739221840114,-475.87555471,0.00010958,2]
[352663520,1739221840124,-500.0,0.00010958,2]
[352663522,1739221840133,-500.0,0.00010958,2]
[352663524,1739221840142,-582.79,0.00010958,2]
[352663526,1739221840151,-500.0,0.00010958,2]
[352663528,1739221840160,-500.0,0.00010958,2]
[352663529,1739221840169,-500.0,0.00010958,2]
[352663531,1739221840178,-500.0,0.00010958,2]
[352663533,1739221840188,-500.0,0.00010958,2]
[352663535,1739221840197,-501.86867306,0.00010958,2]
[352663537,1739221840206,-975.49,0.00010958,2]
[352663538,1739221840216,-500.0,0.00010958,2]
[352663540,1739221840225,-500.0,0.00010958,2]
[352663542,1739221840235,-500.0,0.00010958,2]
[352663544,1739221840244,-500.0,0.00010958,2]
[352663546,1739221840253,-502.10317483,0.00010958,2]
[352663548,1739221840263,-500.0,0.00010958,2]
[352663550,1739221840273,-500.0,0.00010958,2]
[352663552,1739221840283,-500.0,0.00010958,2]
[352663554,1739221840292,-500.0,0.00010958,2]
[352663556,1739221840302,-500.0,0.00010958,2]
[352663558,1739221840311,-500.0,0.00010958,2]
[352663559,1739221840320,-615.32,0.00010958,2]
[352663561,1739221840330,-1123.87,0.00010958,2]
[352663563,1739221840340,-650.17,0.00010958,2]
[352663565,1739221840349,-500.0,0.00010958,2]
[352663567,1739221840359,-500.0,0.00010958,2]
[352663569,1739221840367,-500.0,0.00010958,2]
[352663570,1739221840376,-500.0,0.00010958,2]
[352663572,1739221840386,-500.0,0.00010958,2]
[352663574,1739221840395,-500.0,0.00010958,2]
[352663576,1739221840406,-500.0,0.00010958,2]
[352663578,1739221840415,-500.0,0.00010958,2]
[352663580,1739221840424,-500.0,0.00010958,2]
[352663582,1739221840433,-500.0,0.00010958,2]
[352663583,1739221840443,-503.3989549,0.00010958,2]
[352663585,1739221840452,-500.0,0.00010958,2]
[352663587,1739221840461,-500.0,0.00010958,2]
[352663589,1739221840470,-729.64,0.00010958,2]
[352663591,1739221840479,-708.22,0.00010958,2]
[352663593,1739221840489,-500.0,0.00010958,2]
[352663595,1739221840498,-1067.75,0.00010958,2]
[352663597,1739221840508,-500.0,0.00010958,2]
[352663599,1739221840517,-606.01,0.00010958,2]
[352663600,1739221840527,-500.0,0.00010958,2]
[352663602,1739221840536,-607.02,0.00010958,2]
[352663604,1739221840545,-500.0,0.00010958,2]
[352663606,1739221840555,-500.0,0.00010958,2]
[352663608,1739221840564,-500.0,0.00010958,2]
[352663610,1739221840573,-500.0,0.00010958,2]
[352663611,1739221840582,-500.0,0.00010958,2]
[352663613,1739221840592,-500.0,0.00010958,2]
[352663615,1739221840601,-500.0,0.00010958,2]
[352663617,1739221840610,-500.0,0.00010958,2]
[352663619,1739221840619,-839.38,0.00010958,2]
[352663621,1739221840628,-500.0,0.00010958,2]
[352663623,1739221840638,-500.0,0.00010958,2]
[352663625,1739221840647,-500.0,0.00010958,2]
[352663627,1739221840657,-674.8,0.00010958,2]
[352663629,1739221840666,-1012.88,0.00010958,2]
[352663630,1739221840675,-500.0,0.00010958,2]
[352663632,1739221840685,-500.0,0.00010958,2]
[352663634,1739221840694,-901.82,0.00010958,2]
[352663636,1739221840703,-500.0,0.00010958,2]
[352663638,1739221840713,-590.14,0.00010958,2]
[352663640,1739221840722,-500.0,0.00010958,2]
[352663642,1739221840731,-63.36380057,0.00010958,2]
[352663644,1739221840745,-436.63619943,0.00010958,2]
[352663646,1739221840755,-500.0,0.00010958,2]
[352663648,1739221840764,-611.45,0.00010958,2]
[352663650,1739221840773,-500.0,0.00010958,2]
[352663652,1739221840782,-500.0,0.00010958,2]
[352663654,1739221840791,-1069.49,0.00010958,2]
[352663656,1739221840800,-500.0,0.00010958,2]
[352663658,1739221840809,-593.75,0.00010958,2]
[352663659,1739221840819,-500.0,0.00010958,2]
[352663661,1739221840828,-500.0,0.00010958,2]
[352663663,1739221840838,-500.0,0.00010958,2]
[352663665,1739221840848,-500.0,0.00010958,2]
[352663667,1739221840857,-710.94,0.00010958,2]
[352663669,1739221840866,-969.92,0.00010958,2]
[352663671,1739221840875,-500.0,0.00010958,2]
[352663672,1739221840884,-500.0,0.00010958,2]
[352663674,1739221840894,-604.17,0.00010958,2]
[352663676,1739221840903,-500.0,0.00010958,2]
[352663678,1739221840912,-500.0,0.00010958,2]
[352663680,1739221840923,-500.0,0.00010958,2]
[352663682,1739221840932,-880.14,0.00010958,2]
[352663684,1739221840941,-500.0,0.00010958,2]
[352663686,1739221840951,-500.0,0.00010958,2]
[352663688,1739221840960,-500.0,0.00010958,2]
[352663689,1739221840970,-500.0,0.00010958,2]
[352663691,1739221840980,-705.55,0.00010958,2]
[352663693,1739221840991,-500.0,0.00010958,2]
[352663695,1739221841000,-846.82,0.00010958,2]
[352663697,1739221841009,-500.0,0.00010958,2]
[352663699,1739221841020,-500.0,0.00010958,2]
[352663701,1739221841029,-500.0,0.00010958,2]
[352663703,1739221841044,-536.89700787,0.00010958,2]
[352663705,1739221841053,-500.0,0.00010958,2]
[352663707,1739221841062,-500.0,0.00010958,2]
[352663709,1739221841071,-500.0,0.00010958,2]
[352663710,1739221841081,-500.0,0.00010958,2]
[352663712,1739221841091,-972.73,0.00010958,2]
[352663714,1739221841100,-915.62,0.00010958,2]
[352663716,1739221841110,-343.43421527,0.00010958,2]
[352663718,1739221841123,-156.56578473,0.00010958,2]
[352663720,1739221841132,-500.0,0.00010958,2]
[352663722,1739221841141,-500.0,0.00010958,2]
[352663724,1739221841151,-500.0,0.00010958,2]
[352663726,1739221841160,-500.8168162,0.00010958,2]
[352663728,1739221841169,-745.58,0.00010958,2]
[352663730,1739221841179,-500.0,0.00010958,2]
[352663732,1739221841187,-500.0,0.00010958,2]
[352663733,1739221841196,-500.0,0.00010958,2]
[352663735,1739221841205,-500.0,0.00010958,2]
[352663736,1739221841214,-500.0,0.00010958,2]
[352663737,1739221841223,-90.10728826,0.00010958,2]
[352663738,1739221841241,-409.89271174,0.00010958,2]
[352663739,1739221841250,-473.4625081,0.00010958,2]
[352663740,1739221841262,-26.5374919,0.00010958,2]
[352663741,1739221841271,-192.98785372,0.00010958,2]
[352663742,1739221841280,-724.97,0.00010958,2]
[352663743,1739221841289,-500.0,0.00010958,2]
[352663744,1739221841298,-500.0,0.00010958,2]
[352663745,1739221841307,-500.0,0.00010958,2]
[352663746,1739221841316,-500.0,0.00010958,2]
[352663747,1739221841325,-500.0,0.00010958,2]
[352663749,1739221841334,-500.0,0.00010958,2]
[352663750,1739221841343,-561.47,0.00010958,2]
[352663753,1739221841352,-1036.34,0.00010958,2]
[352663754,1739221841361,-589.32,0.00010958,2]
[352663756,1739221841371,-500.0,0.00010958,2]
[352663758,1739221841380,-500.0,0.00010958,2]
[352663760,1739221841389,-565.4,0.00010958,2]
[352663762,1739221841398,-500.0,0.00010958,2]
[352663764,1739221841407,-500.0,0.00010958,2]
[352663766,1739221841416,-510.54052318,0.00010958,2]
[352663768,1739221841426,-500.0,0.00010958,2]
[352663770,1739221841436,-500.60092595,0.00010958,2]
[352663772,1739221841445,-500.0,0.00010958,2]
[352663774,1739221841455,-500.0,0.00010958,2]
[352663776,1739221841464,-500.0,0.00010958,2]
[352663778,1739221841473,-506.57,0.00010958,2]
[352663780,1739221841482,-584.42,0.00010958,2]
[352663782,1739221841491,-500.0,0.00010958,2]
[352663784,1739221841500,-580.42,0.00010958,2]
[352663786,1739221841510,-500.0,0.00010958,2]
[352663788,1739221841519,-500.0,0.00010958,2]
[352663790,1739221841528,-500.0,0.00010958,2]
[352663792,1739221841537,-181.23555165,0.00010958,2]
[352663794,1739221841547,-500.0,0.00010958,2]
[352663796,1739221841556,-500.0,0.00010958,2]
[352663798,1739221841565,-834.6,0.00010958,2]
[352663800,1739221841575,-500.0,0.00010958,2]
[352663802,1739221841584,-500.0,0.00010958,2]
[352663804,1739221841593,-500.0,0.00010958,2]
[352663806,1739221841604,-500.0,0.00010958,2]
[352663808,1739221841613,-500.0,0.00010958,2]
[352663810,1739221841623,-927.22,0.00010958,2]
[352663812,1739221841633,-500.0,0.00010958,2]
[352663814,1739221841642,-500.0,0.00010958,2]
[352663816,1739221841651,-552.79,0.00010958,2]
[352663818,1739221841660,-500.0,0.00010958,2]
[352663820,1739221841670,-500.0,0.00010958,2]
[352663822,1739221841679,-555.09,0.00010958,2]
[352663824,1739221841688,-500.0,0.00010958,2]
[352663826,1739221841697,-500.0,0.00010958,2]
[352663828,1739221841706,-500.0,0.00010958,2]
[352663830,1739221841715,-962.77,0.00010958,2]
[352663832,1739221841724,-500.0,0.00010958,2]
[352663834,1739221841733,-500.0,0.00010958,2]
[352663836,1739221841743,-500.0,0.00010958,2]
[352663838,1739221841753,-500.0,0.00010958,2]
[352663840,1739221841762,-617.48,0.00010958,2]
[352663842,1739221841771,-1336.17,0.00010958,2]
[352663844,1739221841780,-500.0,0.00010958,2]
[352663846,1739221841790,-500.0,0.00010958,2]
[352663871,1739221842003,-1170.29,0.00010958,2]
[352663873,1739221842013,-500.0,0.00010958,2]
[352663875,1739221842022,-560.41,0.00010958,2]
[352663877,1739221842032,-1380.75,0.00010958,2]
[352663879,1739221842044,-500.0,0.00010958,2]
[352663881,1739221842054,-150.7069734,0.00010958,2]
[352663883,1739221842063,-500.0,0.00010958,2]
[352663884,1739221842072,-757.56,0.00010958,2]
[352663887,1739221842082,-500.0,0.00010958,2]
[352663889,1739221842091,-500.0,0.00010958,2]
[352663891,1739221842101,-500.0,0.00010958,2]
[352663893,1739221842112,-500.0,0.00010958,2]
[352663895,1739221842122,-1346.7,0.00010958,2]
[352663897,1739221842131,-514.84150214,0.00010958,2]
[352663899,1739221842140,-500.0,0.00010958,2]
[352663901,1739221842149,-500.0,0.00010958,2]
[352663903,1739221842159,-1635.67,0.00010958,2]
[352663905,1739221842168,-1189.55,0.00010958,2]
[352663907,1739221842177,-638.14,0.00010958,2]
[352663909,1739221842186,-500.0,0.00010958,2]
[352663911,1739221842196,-698.14,0.00010958,2]
[352663913,1739221842205,-500.0,0.00010958,2]
[352663915,1739221842214,-500.0,0.00010958,2]
[352663917,1739221842223,-767.67,0.00010958,2]
[352663919,1739221842233,-584.67917594,0.00010958,2]
[352663921,1739221842242,-501.8580724,0.00010958,2]
[352663923,1739221842251,-500.0,0.00010958,2]
[352663925,1739221842260,-500.0,0.00010958,2]
[352663927,1739221842269,-545.68,0.00010958,2]
[352663929,1739221842278,-2380.02,0.00010958,2]
[352663931,1739221842288,-500.0,0.00010958,2]
[352663933,1739221842298,-500.0,0.00010958,2]
[352663935,1739221842307,-506.3248722,0.00010958,2]
[352663937,1739221842317,-500.0,0.00010958,2]
[352663939,1739221842326,-500.0,0.00010958,2]
[352663940,1739221842335,-1171.3,0.00010958,2]
[352663944,1739221842346,-500.0,0.00010958,2]
[352663946,1739221842355,-192.92512706,0.00010958,2]